Cogmind - Beta 13 @@@ ROGUE MODE // 2024.04.06 @ 14:37:01 Player: Millea Result: Destroyed by G-50 Soldier with Heavy Laser Performance ------------- Evolutions (2) 1000 Regions Visited (10) 2000 Robots Destroyed (215) 1075 Value Destroyed (7076) 7076 Prototype IDs (31) 620 Alien Tech Used (0) 0 Bonus (2213) 2213 TOTAL SCORE: 13984 Bonus ------- High Alert Combat Kills 1025 Follower Combat Kills 280 Entered Garrisons 200 Used RIF Installer 500 Aligned with FarCom 300 Friendly Fire -92 Cogmind --------- Core Integrity 0/550 Matter 285/300 Energy 239/265 System Corruption 7% Temperature Cool (9) Movement Rolling (95) Ox1 Location -8/Storage Parts ------- > --- POWER (1) -------- Improved Ion Engine > --- PROPULSION (4) --- Wheel Wheel Wheel Wheel > --- UTILITY (3) ------ Medium Reactive Plating Decoy Drone Bay (0/16) > --- WEAPON (3) ------- Particle Gun > --- INVENTORY (5) ---- Heat Sink Improved Heat Sink Huge Storage Unit Peak State ------------ > --- POWER ------------ Reinforced Ion Engine > --- PROPULSION ------- Light Treads Improved Treads Improved Treads Improved Treads > --- UTILITY ---------- Humpback Medium Armor Plating > --- WEAPON ----------- Improved Assault Rifle Improved Assault Rifle Improved Assault Rifle > --- INVENTORY -------- Light Nuclear Core Flying Fortress v7 Improved Heat Sink Improved Heat Sink Huge Storage Unit Humpback High-capacity Matter Pod High-capacity Matter Pod High-capacity Matter Pod High-capacity Matter Pod Improved Targeting Computer Core Shielding Propulsion Shielding Hardened Light Armor Plating Tractor Beam Decoy Drone Bay Heavy Assault Rifle Autogun Autogun Improved Assault Rifle Flak Cannon Rocket Launcher Rocket Launcher Mini Grenade Launcher [Rating: 30] Favorites ----------- Power Reinforced Ion Engine Engine Reinforced Ion Engine Power Core Light Nuclear Core Propulsion Improved Treads Treads Improved Treads Leg Aluminum Leg Wheel Compact Wheel Flight Unit Improved Flight Unit Utility Huge Storage Unit Device Improved Heat Sink Storage Huge Storage Unit Hackware Hacking Suite Protection Core Shielding Weapon Improved Assault Rifle Energy Gun Particle Gun Ballistic Gun Improved Assault Rifle Ballistic Cannon Flak Cannon Launcher Proton Missile Launcher Special Weapon Mining Laser Build | -11 -10 -10 -9 -9 -9 -8 -8 -8 -8 -8 ------- Run | Yrd Mat Min Mat Min Exi Min Mat Gar Mat Sto Slots Evolved 4 | . . . 2 . . . 2 . . . Power . | . . . . . . . . . . . Propulsion 2 | . . . 2 . . . . . . . Utility 1 | . . . . . . . 1 . . . Weapon 1 | . . . . . . . 1 . . . Parts Attached 137 | 7 14 6 28 . 2 2 24 25 29 . Power 17 | 1 1 1 4 . . . 3 3 4 . Engine 11 | 1 1 1 4 . . . 1 . 3 . Core 6 | . . . . . . . 2 3 1 . Reactor . | . . . . . . . . . . . Propulsion 56 | 2 3 1 13 . 1 . 10 11 15 . Treads 36 | 2 3 1 12 . 1 . 7 6 4 . Leg 7 | . . . . . . . . 3 4 . Wheel 12 | . . . . . . . 3 2 7 . Hover . | . . . . . . . . . . . Flight 1 | . . . 1 . . . . . . . Utility 29 | 1 6 . 7 . 1 . 5 4 5 . Device 8 | . 3 . 1 . . . . 1 3 . Storage 7 | 1 3 . . . 1 . . 1 1 . Processor . | . . . . . . . . . . . Hackware 1 | . . . 1 . . . . . . . Protection 13 | . . . 5 . . . 5 2 1 . Artifact . | . . . . . . . . . . . Weapon 35 | 3 4 4 4 . . 2 6 7 5 . Energy Gun 7 | 1 . . . . . . . 3 3 . Energy Cannon . | . . . . . . . . . . . Ballistic Gun 16 | 2 4 . 3 . . . 5 2 . . Ballistic Cannon 6 | . . 3 1 . . . 1 1 . . Launcher 5 | . . . . . . 2 . 1 2 . Special Weapon 1 | . . 1 . . . . . . . . Impact Weapon . | . . . . . . . . . . . Slashing Weapon . | . . . . . . . . . . . Piercing Weapon . | . . . . . . . . . . . Special Melee Weapon . | . . . . . . . . . . . Unidentified Prototypes 3 | . . . 3 . . . . . . . Corrupted Parts 2 | . . . . . . . . . 2 . System Corruption 7 | . . . . . . . . . 7 . Parts Lost 51 | . . 1 3 . . . 13 20 14 . Power 5 | . . . 1 . . . 2 1 1 . Propulsion 22 | . . . 1 . . . 5 9 7 . Utility 9 | . . . . . . . 2 6 1 . Weapon 15 | . . 1 1 . . . 4 4 5 . Highest Loss Streak 10 | . . 1 2 . . . 3 10 5 . To Critical Strikes . | . . . . . . . . . . . Average Slot Usage (%) 94 | . 97 100 99 91 87 88 83 89 89 72 Engine 8 | . 13 14 10 11 11 11 6 . 2 9 Core 2 | . . . . . . . 1 9 6 . Treads 32 | . 28 28 43 44 44 44 23 24 14 . Leg 3 | . . . . . . . . 8 16 . Wheel 1 | . . . . . . . 8 1 4 36 Device 4 | . 12 14 . 3 . . . . 8 9 Storage 10 | . 14 14 11 11 10 11 9 8 8 . Protection 5 | . . . 10 . . . 8 8 3 9 Energy Gun 2 | . . . . . . . . 3 17 9 Ballistic Gun 12 | . 27 6 4 22 22 13 24 16 . . Ballistic Cannon 8 | . . 21 17 . . . . 5 . . Launcher 1 | . . . . . . 8 . . 6 . Naked Turns . | . . . . . . . . . . . Heaviest Build 226 | 13 92 102 108 97 216 216 226 219 223 44 Greatest Support 89 | 40 46 46 89 89 89 89 89 83 40 30 Greatest Overweight (x) 22 | 1 2 2 1 1 2 2 22 21 22 1 Average Overweight (x) 1 | . 1 1 1 1 1 2 3 3 4 1 Largest Inventory Capacity 35 | 8 25 25 25 25 35 35 35 35 35 5 Average Capacity 27 | 6 24 25 25 25 27 35 35 33 30 5 Most Carried 35 | 2 24 25 25 25 31 31 31 35 33 3 Average Carried 24 | 1 15 24 24 24 22 31 29 31 25 3 Final Capacity 35 | 8 25 25 25 25 35 35 35 25 5 5 Final Carried 31 | 2 24 25 22 25 31 31 29 25 3 3 Class Distribution -------------------- 62% | Mutant 21% | Hauler-Skirmisher 7% | Hauler-Mutant 5% | Scavenger-Skirmisher Dominant Class ---------------- Mutant | -10/Materials Mutant | -10/Mines Mutant | -9/Materials Mutant | -9/Mines Mutant | -9/Exiles Hauler-Mutant | -8/Mines Hauler-Skirmisher | -8/Materials Hauler-Skirmisher | -8/Garrison Hauler-Skirmisher | -8/Materials Scavenger-Mutant | -8/Storage Resources | -11 -10 -10 -9 -9 -9 -8 -8 -8 -8 -8 ----------- Run | Yrd Mat Min Mat Min Exi Min Mat Gar Mat Sto Matter Collected 5845 | 225 669 444 1682 82 80 103 1193 900 467 . Remotely . | . . . . . . . . . . . Salvage Created 7513 | . 630 223 1633 70 . 178 1669 1100 2010 . Parts 465 | . 51 16 118 7 . 19 93 57 104 . Haulers Intercepted 11 | . 2 . 6 . . . 3 . . . Recyclers Shooed 3 | . 2 . 1 . . . . . . . Parts Field Recycled . | . . . . . . . . . . . Retrieved Matter . | . . . . . . . . . . . Parts Self-Destructed . | . . . . . . . . . . . Prevented . | . . . . . . . . . . . Kills | -11 -10 -10 -9 -9 -9 -8 -8 -8 -8 -8 ------- Run | Yrd Mat Min Mat Min Exi Min Mat Gar Mat Sto Combat Hostiles Destroyed 172 | . 9 9 47 4 . 7 32 25 39 . Guns 97 | . 9 4 4 4 . . 31 20 25 . Cannons 54 | . . 5 43 . . . 1 5 . . AOE 21 | . . . . . . 7 . . 14 . Classes Destroyed 17 | . 7 1 6 . . . 2 . 1 . Worker 17 | . 4 . 7 . . . 4 . 2 . Builder 8 | . . . 1 . . . 2 . 5 . Tunneler 4 | . 1 . 1 . . 1 . . 1 . Hauler 11 | . 2 . 6 . . . 3 . . . Recycler 5 | . . . 1 . . 1 2 . 1 . Mechanic 2 | . . . 1 . . . . . 1 . Operator 4 | . 2 . 1 . . . . . 1 . Watcher 10 | . 3 . 4 . . . 2 . 1 . Swarmer 32 | . 3 3 1 4 . 4 8 3 6 . Cutter 3 | . . . . . . . 3 . . . Grunt 109 | . 6 4 37 . . 2 18 15 27 . Brawler 3 | . . . 1 . . . . . 2 . Duelist 4 | . . . 1 . . 1 . 1 1 . Protector 1 | . . . . . . . . . 1 . Sentry 17 | . . . 7 . . . 2 6 2 . Hunter 1 | . . . . . . . 1 . . . Assembled 2 | . . 2 . . . . . . . . Best Kill Streak 14 | . 8 3 6 4 . 9 14 4 7 . Combat Bots Only 10 | . 4 3 6 4 . 7 10 4 6 . Max Kills in Single Turn 5 | . 2 1 2 1 . 4 2 2 5 . Gunslinging 1 | . . . . . . . . 1 . . Exploded 4 | . . . . . . 3 . . 4 . Melee . | . . . . . . . . . . . Uniques/NPCs Destroyed . | . . . . . . . . . . . Combat | -11 -10 -10 -9 -9 -9 -8 -8 -8 -8 -8 -------- Run | Yrd Mat Min Mat Min Exi Min Mat Gar Mat Sto Hostile Shots Fired 755 | . 43 36 142 30 . 5 176 156 165 2 Missed 209 | . 7 9 51 14 . 1 43 40 43 1 Damage Taken 7749 | . 325 430 1137 158 . 41 1970 1763 1906 19 Core 801 | . 73 62 101 13 . . 140 136 257 19 Absorbed by Shields . | . . . . . . . . . . . Redirected to Shielding 46 | . . . 6 . . . . 20 20 . Ignored by Resistances 76 | . . . 76 . . . . . . . Regen/Repaired (Parts) 518 | . 237 . 281 . . . . . . . Core Remaining (%) 72 | 100 . 46 . . . 71 . . . . Volleys Fired 533 | . 55 33 125 11 . 8 121 71 106 3 Largest 3 | . 2 2 2 2 . 1 3 3 3 1 Hottest 195 | . 46 144 88 46 . 33 90 153 195 65 Shots Fired 1201 | . 110 58 248 22 . 8 349 188 214 4 Gun 868 | . 110 36 22 22 . . 347 145 182 4 Cannon 283 | . . 13 226 . . . 2 42 . . Launcher 41 | . . . . . . 8 . 1 32 . Special 9 | . . 9 . . . . . . . . Kinetic 951 | . 110 49 248 22 . . 349 162 11 . Thermal 209 | . . 9 . . . . . 25 171 4 Explosive 17 | . . . . . . 8 . 1 8 . Electromagnetic 24 | . . . . . . . . . 24 . Robot Hit Streak 30 | . 10 6 10 13 . 2 17 30 12 1 Robot Miss Streak 8 | . 8 6 8 2 . 2 6 5 5 2 Penetration Max . | . . . . . . . . . . . Secondary Targets 16 | . 2 1 . . . . 7 4 2 . Max Gunslinging Chain 1 | . 1 1 . . . . 1 1 1 . Shots Hit Robots 816 | . 55 32 214 17 . 4 231 117 145 1 Core Hits 507 | . 29 19 211 6 . 13 82 50 97 . Critical Kills 1 | . . . . . . . 1 . . . Critical Parts Destroyed 2 | . . . . . . . 1 1 . . Critical Strikes 10 | . . . . . . . 2 3 5 . Burn 6 | . . . . . . . . 1 5 . Destroy 3 | . . . . . . . 2 1 . . Blast 1 | . . . . . . . . 1 . . Melee Attacks . | . . . . . . . . . . . Impact . | . . . . . . . . . . . Slashing . | . . . . . . . . . . . Piercing . | . . . . . . . . . . . Sneak Attacks . | . . . . . . . . . . . Combat Hostiles . | . . . . . . . . . . . Follow-up Attacks . | . . . . . . . . . . . Damage Inflicted 15792 | . 923 454 3748 285 . 543 3622 2240 3962 15 Guns 9114 | . 923 338 288 285 . . 3573 1665 2027 15 Cannons 4189 | . . 116 3449 . . . 49 575 . . Explosions 2478 | . . . . . . 543 . . 1935 . Melee . | . . . . . . . . . . . Ramming 11 | . . . 11 . . . . . . . Kinetic 11109 | . 923 454 3737 285 . . 3622 1981 107 . Thermal 2350 | . . . . . . . . 259 2076 15 Explosive 1023 | . . . . . . 543 . . 480 . Electromagnetic 1299 | . . . . . . . . . 1299 . Impact . | . . . . . . . . . . . Slashing . | . . . . . . . . . . . Piercing . | . . . . . . . . . . . Highest Corruption 7 | . 1 1 . . . . . . 7 7 Average Corruption 1 | . 1 1 . . . . . . 6 7 Corruption Purged . | . . . . . . . . . . . Corruption Blocked . | . . . . . . . . . . . Effects 29 | . 6 15 . . . . . . 4 4 Message Errors 8 | . 1 5 . . . . . . 1 1 Matter Fused 7 | . 2 3 . . . . . . 1 1 Heat Flow Errors 5 | . 1 4 . . . . . . . . Energy Discharges 4 | . 1 2 . . . . . . . 1 Parts Rejected 1 | . . . . . . . . . 1 . Data Loss (minor) 2 | . 1 1 . . . . . . . . Data Loss (major) 1 | . . . . . . . . . 1 . Misfires 1 | . . . . . . . . . . 1 Overload Shots . | . . . . . . . . . . . Overflow Damage 71 | . . 2 . . . 9 . 19 41 . Projectiles 21 | . . 2 . . . . . 19 . . Explosions 50 | . . . . . . 9 . . 41 . Melee . | . . . . . . . . . . . Knockbacks 71 | . . 5 58 . . . 2 6 . . Impact . | . . . . . . . . . . . Kinetic 65 | . . 4 54 . . . 2 5 . . Secondary 6 | . . 1 4 . . . . 1 . . Self-Inflicted Damage 51 | . . . . . . . . . 51 . Shots 3 | . . . . . . . . . 3 . Rammed . | . . . . . . . . . . . Targets Rammed 1 | . . . 1 . . . . . . . Kicked . | . . . . . . . . . . . Crushed 1 | . . . 1 . . . . . . . Highest Temperature 311 | . 259 246 311 5 . 9 300 306 309 48 Average Temperature 83 | . 20 117 76 3 . 5 75 107 110 19 Received Heat Transfer 3537 | . 57 102 606 18 . 18 792 918 1017 9 Effects 11 | . . . 1 . . . . 8 2 . Energy Bleed 3 | . . . . . . . . 1 2 . Interference 8 | . . . 1 . . . . 7 . . Siege Activations . | . . . . . . . . . . . Robots Corrupted . | . . . . . . . . . . . Combat Hostiles . | . . . . . . . . . . . Parts Fried 5 | . . . . . . . . . 5 . Impact Corruptions . | . . . . . . . . . . . Robots Melted . | . . . . . . . . . . . Combat Hostiles . | . . . . . . . . . . . Parts Melted 8 | . . . . . . . . 1 7 . Heat Transferred 5697 | . . . . . . . . 629 5031 37 Parts Sabotaged . | . . . . . . . . . . . Parts Stolen . | . . . . . . . . . . . Parts Stripped . | . . . . . . . . . . . Power Chain Reactions 7 | . . . . . . . . . 7 . Alert | -11 -10 -10 -9 -9 -9 -8 -8 -8 -8 -8 ------- Run | Yrd Mat Min Mat Min Exi Min Mat Gar Mat Sto Peak Influence 1547 | . 137 130 724 232 . 194 387 1547 976 401 Initial 754 | . . 15 . 232 . . 16 107 754 401 Average 316 | . 30 23 375 93 . 50 152 683 654 49 Maximum Alert Level 4 | . . . 3 1 . . 1 4 3 2 Low Security (%) 51 | 100 100 100 35 72 . 100 66 11 . 91 Level 1 10 | . . . 5 27 . . 33 30 . . Level 2 27 | . . . 56 . . . . 16 63 8 Level 3 7 | . . . 1 . . . . 21 36 . Level 4 3 | . . . . . . . . 20 . . Level 5 . | . . . . . . . . . . . High Security . | . . . . . . . . . . . Max Security . | . . . . . . . . . . . Sterilizations 1 | . . . 1 . . . . . . . Squads Dispatched 35 | . 2 . 14 . . . 8 . 11 . Investigation 17 | . 1 . 12 . . . 3 . 1 . Extermination . | . . . . . . . . . . . Reinforcement 10 | . 1 . 1 . . . 3 . 5 . Assault 5 | . . . 1 . . . . . 4 . Garrison 3 | . . . . . . . 2 . 1 . Intercept . | . . . . . . . . . . . Searches Triggered . | . . . . . . . . . . . Construction Impeded 2 | . . . . . . . . . 2 . Haulers Reinforced . | . . . . . . . . . . . Active Scanning Responses . | . . . . . . . . . . . Cargo Convoy Interrupts . | . . . . . . . . . . . Stealth | -11 -10 -10 -9 -9 -9 -8 -8 -8 -8 -8 --------- Run | Yrd Mat Min Mat Min Exi Min Mat Gar Mat Sto Distress Signals 18 | . 1 . 5 . . . 4 . 6 2 Communications Jammed . | . . . . . . . . . . . Distress Signals . | . . . . . . . . . . . Times Spotted 245 | . 19 14 65 5 . 7 43 29 61 2 Peak Tracking Total 7 | . 5 3 5 4 . 5 6 5 7 4 Tactical Retreats 12 | . 1 2 2 . . . 1 . 5 1 Traps | -11 -10 -10 -9 -9 -9 -8 -8 -8 -8 -8 ------- Run | Yrd Mat Min Mat Min Exi Min Mat Gar Mat Sto Traps Triggered 15 | . . 1 1 . . . . 12 1 . Indirectly 1 | . . . . . . . . . 1 . Trap Hack Attempts . | . . . . . . . . . . . Triggered . | . . . . . . . . . . . Disarmed . | . . . . . . . . . . . Reprogrammed . | . . . . . . . . . . . Reused . | . . . . . . . . . . . Traps Extracted . | . . . . . . . . . . . Installed . | . . . . . . . . . . . Triggered 1 | . . . . . . . . . 1 . Machines | -11 -10 -10 -9 -9 -9 -8 -8 -8 -8 -8 ---------- Run | Yrd Mat Min Mat Min Exi Min Mat Gar Mat Sto Machines Disabled 15 | . 2 . 1 . . . 2 5 5 . Max in Single Turn 1 | . 1 . 1 . . . 1 1 1 . Garrison Relay 5 | . . . . . . . . 5 . . Machines Repaired . | . . . . . . . . . . . Machines Dismantled . | . . . . . . . . . . . Machines Sabotaged . | . . . . . . . . . . . Overloaded Fab Kills . | . . . . . . . . . . . Hacking | -11 -10 -10 -9 -9 -9 -8 -8 -8 -8 -8 --------- Run | Yrd Mat Min Mat Min Exi Min Mat Gar Mat Sto Machines Accessed 34 | . 5 1 14 1 2 . 4 3 2 2 Terminals 23 | . 3 . 11 . . . 3 3 1 2 Fabricators . | . . . . . . . . . . . Repair Stations 2 | . 1 . 1 . . . . . . . Recycling Units 3 | . 1 . 2 . . . . . . . Scanalyzers 1 | . . . . . . . . . 1 . Garrison Access 1 | . . . . . . . 1 . . . Total Hacks 125 | . 26 1 54 1 5 . 14 7 8 9 Successful 69 | . 17 1 23 1 5 . 8 4 7 3 Failed 56 | . 9 . 31 . . . 6 3 1 6 Catastrophic 7 | . 1 . 4 . . . . . 1 1 Database Lockouts . | . . . . . . . . . . . Manual 65 | . 9 . 36 . 1 . 9 2 . 8 Terminals 87 | . 10 . 45 . . . 13 7 3 9 Fabricators . | . . . . . . . . . . . Repair Stations 17 | . 13 . 4 . . . . . . . Recycling Units 8 | . 3 . 5 . . . . . . . Scanalyzers 5 | . . . . . . . . . 5 . Garrison Access 1 | . . . . . . . 1 . . . Terminal Hacks 32 | . 2 1 12 1 5 . 3 3 2 3 Record 4 | . . . . . 4 . . . . . Robot Analysis 8 | . 2 . 6 . . . . . . . Prototype ID Bank 2 | . . . 2 . . . . . . . Open Door 4 | . . 1 . 1 . . . 2 . . Branch Access Points 1 | . . . 1 . . . . . . . Emergency Access Points 1 | . . . . . . . . 1 . . Alert Level 2 | . . . 1 . . . 1 . . . Unreport Threat 9 | . . . 2 . . . 2 . 2 3 Derelict Proto ID Bank 1 | . . . . . 1 . . . . . Fabricator Hacks . | . . . . . . . . . . . Repair Station Hacks 16 | . 12 . 4 . . . . . . . Scan Component 8 | . 6 . 2 . . . . . . . Repair 8 | . 6 . 2 . . . . . . . Recycling Unit Hacks 1 | . 1 . . . . . . . . . Retrieve Matter 1 | . 1 . . . . . . . . . Scanalyzer 5 | . . . . . . . . . 5 . Insert Component 3 | . . . . . . . . . 3 . Analyze 2 | . . . . . . . . . 2 . Garrison Access Hacks 1 | . . . . . . . 1 . . . Unlock Access 1 | . . . . . . . 1 . . . Unauthorized Hacks 14 | . 2 . 7 . . . 4 1 . . Terminals 11 | . 2 . 4 . . . 4 1 . . Botnet 10 | . 2 . 4 . . . 3 1 . . Disrupt 1 | . . . . . . . 1 . . . Fabricators . | . . . . . . . . . . . Repair Stations . | . . . . . . . . . . . Recycling Units 3 | . . . 3 . . . . . . . Reject 1 | . . . 1 . . . . . . . Mask 2 | . . . 2 . . . . . . . Scanalyzers . | . . . . . . . . . . . Garrison Access . | . . . . . . . . . . . Data Cores Recovered . | . . . . . . . . . . . Used . | . . . . . . . . . . . Hacking Detections 29 | . 5 . 13 . . . 4 3 2 2 Full Trace Events 20 | . 3 . 13 . . . 3 . 1 . Feedback Events 1 | . 1 . . . . . . . . . Corruption 1 | . 1 . . . . . . . . . Feedback Blocked . | . . . . . . . . . . . Robot Schematics Acquired . | . . . . . . . . . . . Robots Built . | . . . . . . . . . . . Authchips . | . . . . . . . . . . . Time . | . . . . . . . . . . . Total Robot Build Rating . | . . . . . . . . . . . Part Schematics Acquired 2 | . . . . . . . . . 2 . Parts Built . | . . . . . . . . . . . Authchips . | . . . . . . . . . . . Time . | . . . . . . . . . . . Total Part Build Rating . | . . . . . . . . . . . Parts Repaired 8 | . 6 . 2 . . . . . . . Time 256 | . 192 . 64 . . . . . . . Parts Recycled . | . . . . . . . . . . . Recycled Matter . | . . . . . . . . . . . Retrieved Matter 33 | . 33 . . . . . . . . . Retrieved Components . | . . . . . . . . . . . Parts Scanalyzed 2 | . . . . . . . . . 2 . Part Schematics Acquired 2 | . . . . . . . . . 2 . Parts Damaged . | . . . . . . . . . . . Bothacking | -11 -10 -10 -9 -9 -9 -8 -8 -8 -8 -8 ------------ Run | Yrd Mat Min Mat Min Exi Min Mat Gar Mat Sto Used RIF Installer 1 | . . . . . . . . 1 . . Robots Hacked . | . . . . . . . . . . . Non-combat . | . . . . . . . . . . . Combat . | . . . . . . . . . . . Robot Hacks Applied . | . . . . . . . . . . . Relay Couplers Released 19 | . . . . . . . . 19 . . Machine Destruction 19 | . . . . . . . . 19 . . Fabnet Peak Effective % . | . . . . . . . . . . . Robots Rewired . | . . . . . . . . . . . Allies Hacked . | . . . . . . . . . . . Hacks Repelled . | . . . . . . . . . . . Allies | -11 -10 -10 -9 -9 -9 -8 -8 -8 -8 -8 -------- Run | Yrd Mat Min Mat Min Exi Min Mat Gar Mat Sto Total Allies 9 | . . 4 . 2 . . . 3 . . Largest Group 4 | . . 4 3 2 2 . . 2 . . Highest-Rated Group 179 | . . 71 40 48 48 . . 179 . . Highest-Rated Ally 179 | . . 31 16 31 31 . . 179 . . Total Orders . | . . . . . . . . . . . Ally Attacks 73 | . . 25 21 5 . . . 22 . . Total Damage 952 | . . 236 200 107 . . . 409 . . Kills 16 | . . 5 5 2 . . . 4 . . Allies Corrupted . | . . . . . . . . . . . Allies Melted . | . . . . . . . . . . . Intel | -11 -10 -10 -9 -9 -9 -8 -8 -8 -8 -8 ------- Run | Yrd Mat Min Mat Min Exi Min Mat Gar Mat Sto Robot Analysis Total 8 | . 2 . 6 . . . . . . . Derelict Logs Recovered 2 | . . 1 . 1 . . . . . . Drone Launches 16 | . . . . . . . . . 16 . Drone Recoveries . | . . . . . . . . . . . Exploration | -11 -10 -10 -9 -9 -9 -8 -8 -8 -8 -8 ------------- Run | Yrd Mat Min Mat Min Exi Min Mat Gar Mat Sto Turns Passed 19843 | 79 2355 2065 5867 1457 859 939 1137 2823 2125 137 Spaces Moved 5993 | 48 759 646 1856 591 322 281 228 686 461 115 Core 10 | 10 . . . . . . . . . . Treads 5396 | 38 759 646 1856 591 322 281 139 485 279 . Legs 49 | . . . . . . . . 29 20 . Wheels 538 | . . . . . . . 89 172 162 115 Hover . | . . . . . . . . . . . Flight . | . . . . . . . . . . . Fastest Speed 50 | 50 160 240 240 240 160 320 168 100 95 95 Average Speed 274 | 142 254 298 240 240 257 320 279 361 362 95 Slowest Speed 1590 | 160 320 320 240 240 320 320 960 1590 1040 95 Overloaded Moves . | . . . . . . . . . . . Propulsion Burnouts . | . . . . . . . . . . . Robots Hopped . | . . . . . . . . . . . Cave-ins Triggered . | . . . . . . . . . . . Exploration Rate (%) 61 | 4 97 100 96 94 62 60 28 79 41 12 Regions Visited 10 Branch Regions 5 Pre-discovered Areas 3 | . . 1 . 1 1 . . . . . Known Exits Taken 3 | . . . 1 . . . 1 . 1 . Unknown Exits Taken 6 | 1 1 1 . 1 1 1 . . . . Scrap Searched 2 | . . 1 . 1 . . . . . . Spaces Dug 15 | . . 9 . . . . . 6 . . Terrain Destroyed 110 | . . 9 . . . 41 . 6 54 . Melee . | . . . . . . . . . . . Projectile 9 | . . 9 . . . . . . . . AOE 101 | . . . . . . 41 . 6 54 . Terrain Rammed . | . . . . . . . . . . . Walls Destroyed . | . . . . . . . . . . . Machines Disabled . | . . . . . . . . . . . Actions | -11 -10 -10 -9 -9 -9 -8 -8 -8 -8 -8 --------- Run | Yrd Mat Min Mat Min Exi Min Mat Gar Mat Sto Total 8375 | 56 1092 716 3029 612 355 314 460 887 715 139 Wait 1478 | . 234 17 988 . . 24 76 20 98 21 Move 5984 | 47 758 645 1855 590 321 280 228 685 460 115 Hop . | . . . . . . . . . . . Pick Up 124 | 1 23 8 9 6 26 . 6 33 12 . Fast Attach 54 | 7 8 1 10 . 2 . 9 7 10 . Attach 47 | . . 1 6 . . . 13 12 15 . Detach 21 | 1 3 . 2 . . . 5 2 8 . Swap 36 | . 6 4 12 . . 2 2 6 4 . Drop 48 | . 5 7 21 5 6 . . 2 2 . Fire 533 | . 55 33 125 11 . 8 121 71 106 3 Melee . | . . . . . . . . . . . Ram . | . . . . . . . . . . . Kick . | . . . . . . . . . . . Crush 1 | . . . 1 . . . . . . . Escape Stasis 49 | . . . . . . . . 49 . . Rewire . | . . . . . . . . . . . Trap . | . . . . . . . . . . . Miscellaneous . | . . . . . . . . . . . Route ------- -11/Scrapyard -10/Materials (discovered 5 exits: *Mat x3 / *Min / [*Sub]) -10/Mines (discovered 3 exits: *Mat x2 / [*Sub]) -9/Materials (discovered 4 exits: *Mat x3 / *Min) -9/Mines (discovered 3 exits: *Mat x2 / *Exi) -9/Exiles -8/Mines (discovered 2 exits: *Mat x2) -8/Materials (discovered 3 exits: *Sto x2 / Gar) -8/Garrison (discovered 3 exits: *Mat x3) -8/Materials (discovered 2 exits: [*Fac] / *Sto) -8/Storage History --------- Turn | Location | Event 21 | -11/Scrapyard | Discovered new exit (range 16) 80 | -11/Scrapyard | Entered Materials 315 | -10/Materials | Build established: Mutant 423 | -10/Materials | Discovered new exit (range 13) 631 | -10/Materials | Discovered new exit (range 14) 1256 | -10/Materials | Repaired Autogun 1296 | -10/Materials | Repaired Lgt. Nuclear Core 1323 | -10/Materials | Repaired Lgt. Treads 1356 | -10/Materials | Repaired Autogun 1383 | -10/Materials | Repaired Ion Engine 1423 | -10/Materials | Repaired Imp. Heat Sink 1453 | -10/Materials | Discovered new exit (range 16) 1759 | -10/Materials | Discovered new exit (range 4) 2112 | -10/Materials | Discovered new exit (range 15) 2435 | -10/Materials | Entered Mines 2836 | -10/Mines | Learned location of Zion (-6) 2860 | -10/Mines | Discovered new exit (range 6) 2882 | -10/Mines | Met a Derelict who couldn't figure out how to use a Trap Extractor 3125 | -10/Mines | Discovered new exit (range 10) 3269 | -10/Mines | Discovered new exit (range 10) 3564 | -10/Mines | Assembled infested the area 3569 | -10/Mines | Assisted by a Guerilla fighting off Assembled 3623 | -10/Mines | Received a Mining Laser from a helpful Derelict 3734 | -10/Mines | Core integrity fell below 50% 3864 | -10/Mines | Assisted by bots powering up and referring to "LRC-V3" 4500 | -10/Mines | Entered Materials 4500 | -9/Materials | Accompanied by 3 allies 4500 | -9/Materials | Evolved 2 slots: Propulsion x2 4690 | -9/Materials | Identified exit to Mines 5690 | -9/Materials | Discovered new exit (range 8) 6722 | -9/Materials | Discovered new exit (range 16) 7472 | -9/Materials | Repaired Imp. Treads 7506 | -9/Materials | Repaired Imp. Treads 7700 | -9/Materials | First assault squad dispatched 7790 | -9/Materials | Discovered new exit (range 14) 9597 | -9/Materials | Sterilization system engaged 9597 | -9/Materials | Non-combat units ordered to evacuate 9697 | -9/Materials | Combat units ordered to evacuate 9897 | -9/Materials | Ambient heat levels rising (+10) 10047 | -9/Materials | Ambient heat levels rising (+10) 10197 | -9/Materials | Ambient heat levels rising (+10) 10347 | -9/Materials | Ambient heat levels rising (+10) 10367 | -9/Materials | Entered Mines 10408 | -9/Mines | Deemed a non-threat by the Exiles lab entrance 10408 | -9/Mines | Discovered new exit (range 5) 10511 | -9/Mines | Received a Rocket Launcher from a helpful Derelict 10808 | -9/Mines | Found the Drone Emporium 10843 | -9/Mines | Found Prototype Device 11069 | -9/Mines | Discovered new exit (range 14) 11136 | -9/Mines | Discovered new exit (range 5) 11137 | -9/Mines | Learned location of Storage (-8) 11824 | -9/Mines | Entered Exiles 11824 | -9/Exiles | Accompanied by 2 allies 11854 | -9/Exiles | Led the pair of lost Derelicts to a safe place 11880 | -9/Exiles | Met 8R-AWN 11925 | -9/Exiles | Met EX-HEX 11990 | -9/Exiles | Met EX-BIN 12019 | -9/Exiles | Aligned with FarCom system 12021 | -9/Exiles | Given EX-Vault access code 12079 | -9/Exiles | Opened EX-Vault 12107 | -9/Exiles | Found Flying Fortress v7 12156 | -9/Exiles | Warned to stay clear of 0b10 Research branches 12235 | -9/Exiles | Met EX-DEC 12654 | -9/Exiles | Discovered new exit (range 10) 12665 | -9/Exiles | Build established: Hauler-Mutant 12683 | -9/Exiles | Left Exiles lab with Flying Fortress v7 12683 | -9/Exiles | Entered Mines 13299 | -8/Mines | Destroyed 7 combat bots 13299 | -8/Mines | Discovered new exit (range 15) 13328 | -8/Mines | Discovered new exit (range 15) 13622 | -8/Mines | Entered Materials 13622 | -8/Materials | Evolved 2 slots: Utility x1, Weapon x1 13623 | -8/Materials | Identified exit to Storage 13946 | -8/Materials | Build established: Hauler-Skirmisher 14067 | -8/Materials | Destroyed 10 combat bots 14435 | -8/Materials | Discovered exit to Storage (range 6) 14438 | -8/Materials | Garrison activated, responded to threat 14556 | -8/Materials | Garrison activated, responded to threat 14684 | -8/Materials | Lost 3 parts (2n1w) 14759 | -8/Materials | Identified exit to Garrison 14759 | -8/Materials | Entered Garrison 14812 | -8/Garrison | Triggered checkpoint 14945 | -8/Garrison | Garrison Relay disabled 15092 | -8/Garrison | Triggered checkpoint 15242 | -8/Garrison | Discovered new exit (range 8) 15318 | -8/Garrison | Triggered checkpoint 15380 | -8/Garrison | Lost 5 parts (3n1u1w) 15523 | -8/Garrison | Rescued a captive Derelict 15525 | -8/Garrison | Rescued a captive Derelict 15686 | -8/Garrison | Triggered checkpoint 15834 | -8/Garrison | Discovered new exit (range 10) 15944 | -8/Garrison | Triggered checkpoint 16042 | -8/Garrison | Garrison Relay disabled 16065 | -8/Garrison | Garrison Relay disabled 16407 | -8/Garrison | Garrison Relay disabled 16553 | -8/Garrison | Triggered checkpoint 16608 | -8/Garrison | Lost 3 parts (1n2w) 17108 | -8/Garrison | Discovered new exit (range 10) 17222 | -8/Garrison | Triggered checkpoint 17266 | -8/Garrison | Lost 10 parts (4n5u1w) 17410 | -8/Garrison | Core integrity fell below 50% 17476 | -8/Garrison | Garrison Relay disabled 17506 | -8/Garrison | Rescued AZ-K3N 17539 | -8/Garrison | Installed Relay Interface Framework 17582 | -8/Garrison | Entered Materials 17658 | -8/Materials | Build established: Scavenger-Skirmisher 17823 | -8/Materials | Lost 5 parts (4n1w) 18271 | -8/Materials | Identified Decoy Drone Bay 18382 | -8/Materials | First assault squad dispatched 18574 | -8/Materials | Build established: Hauler-Skirmisher 19178 | -8/Materials | Core integrity fell below 20% 19430 | -8/Materials | Garrison activated, responded to threat 19462 | -8/Materials | Build established: Scavenger-Skirmisher 19644 | -8/Materials | Discovered new exit (range 68) 19694 | -8/Materials | Lost 12 allies 19701 | -8/Materials | Discovered exit to Storage (range 8) 19707 | -8/Materials | Entered Storage 19844 | -8/Storage | Destroyed by G-50 Soldier with Heavy Laser Last Messages --------------- LOCATION=STORAGE GOAL=ESCAPE 19707_ Receiving FarCom transmissions... 19710_ System corrupted: Matter fused (-7). 19718_ Connecting with Terminal... >>Alert(Purge) Purged threat record, alert level lowered. >>Alert(Purge) Purged threat record, alert level lowered. 19724_ Connecting with Terminal... >>Alert(Purge) Purged threat record, alert level lowered. 19765_ 5ZGSPAQ0ZYQSJC,ZFC#|S 19775_ W-25 Informer sends out distress signal. 19815_ System corrupted: FCS attempts to trigger Particle Gun. 19815_ System corrupted: Particle Gun misfires. 19836_ System corrupted: Energy discharge (-90). 19837_ A-02 Transporter sends out distress signal. Map ----- +----------------------------------------------------+ | ???????????????????????#####????? | | ???????????????????????# #????? | | ?????????????########### #????? | | ???????????### """ """ # #????? | | ???????????#"" """ """ # #????? | | ???????????#"T """ """ # #????? | | ???????????#"" + #????? | | ???????????### # #????? | | ?????????????# # #????? | | ?????????????# # #????? | | ?????????????# # #????? | | ?????????????#####"T"### #????? | | ?????????????????#"""#?# #????? | | ?????????????????#####?# #????? | | ???????????????????????# #????? | | ???????????????????????# #????? | | ???????????????????????# #????? | | ?????????????###+####### #????? | | ?????????????# #????? | | ?????????????# #????? | | ????????? #????? | | ??????????#####+######## #????? | | ???????????????????????# #????? | | ???????????????????????# #????? | | ???????????????????????# #????? | | ???????????????????????# @ #????? | | ???????????????????????# #????? | | ??????????????+######### #????? | | ?????????????# #????? | | ?????????????# #????? | | ??????????# #????? | | ??????????? ############ #????? | | ???????????????????????# #????? | | ???????????????????????# #????? | | ??????????????????????Y# #????? | | ???????????????????????#g a#????? | | ??????????????????????gg #????? | | ???????????????????????# #????? | | ???????????????????????# #????? | | ???????????????????????+ #????? | | ???????????????????????# #????? | | ???????????????????????# ?????? | | ???????????????????????# ?????? | | ???????????????????????# ?????? | | ???????????????????????? ?????? | | ????????????????????????????????? | | ????????????????????????????????? | | ????????????????????????????????? | | ????????????????????????????????? | | ????????????????????????????????? | +----------------------------------------------------+ Best States ------------- Heat Dissipation 45 Energy Generation 18 Energy Capacity 275 Matter Stores 300 Matter Capacity 300 Sight Range 16 Terrain Scan Density 10 Armor Coverage 225 Resistance: KI 30 Resistance: TH 10 Core Shielding 20 Evasion (%) 50 Recoil Reduction 4 Offensive Hacking 10 Item Schematics ----------------- Lgt. Armor Plating | -8/Materials | Scanalyzed Humpback | -8/Materials | Scanalyzed Robot Schematics ------------------ None Fabricated ------------ Nothing Alien Tech Used ----------------- None Achievements -------------- None Challenges ------------ None Game ------ Seed OpticalSegregatorFilter Manual? 0 Play Time 01:22:10 Cumulative 94.1 hours Start 2024.04.06 @ 08:00:45 End 2024.04.06 @ 14:37:01 Sessions 1 Manual Loads 0 Difficulty Rogue Special Mode None Game No. 83 Rogue 83 Adventurer 0 Explorer 0 Win Type - Total 1 Types 1/0/0/0/0/0/0/0/0 Lore% 47 Gallery% 56 Achievement% 58 Wizard Run 0 Options --------- Layout 2 ASCII 1 Keyboard 1 Movement Vi Keybinds 0 Fullscreen 1 Font 24/Smallcaps Map View 50x44 Zoom Use 0% Tactical HUD 1 Map Filters NONE Filters NONE Steam 1 RUN: fb04d8ed-21d9-4a78-b697-0a3bcdb76b7e